bitfinex/quotes_BTCUSD_20250331
["timestamp","ask_amount","ask_price","bid_price","bid_amount"]
[1743414614575,0.003,81609.0,81608.0,0.245072]
[1743414614984,0.36608781,81610.0,81607.0,0.257329]
[1743414615180,0.61115581,81610.0,81607.0,0.245076]
[1743414615385,0.245071,81609.0,81607.0,0.245076]
[1743414615584,0.61115581,81610.0,81607.0,0.245076]
[1743414616506,0.62340881,81610.0,81604.0,0.012254]
[1743414616706,0.62340881,81610.0,81606.0,0.24508]
[1743414616707,0.06608781,81610.0,81606.0,0.24508]
[1743414617072,0.06608781,81610.0,81609.0,0.257324]
[1743414617073,0.01918781,81610.0,81609.0,0.257324]
[1743414617548,0.3,81613.0,81612.0,0.256315]
[1743414617950,0.01240524,81614.0,81613.0,0.25731]
[1743414618270,0.245049,81616.0,81613.0,0.012252]
[1743414618476,0.3,81615.0,81613.0,0.012252]
[1743414618703,0.3,81609.0,81607.0,0.245075]
[1743414618893,0.557334,81606.0,81605.0,0.147]
[1743414619110,0.54508,81606.0,81605.0,0.147]
[1743414620332,0.564268,81606.0,81605.0,0.147]
[1743414621422,0.3,81605.0,81603.0,0.245087]
[1743414621779,0.545084,81605.0,81604.0,0.14696]
[1743414622186,0.545084,81605.0,81602.0,0.245091]
[1743414622720,0.245086,81604.0,81601.0,0.245089]
[1743414622896,0.545084,81605.0,81602.0,0.245091]
[1743414623627,0.545084,81605.0,81578.0,0.63636]
[1743414623628,0.012255,81596.0,81587.0,0.25739]
[1743414623828,0.012255,81596.0,81592.0,0.14696]
[1743414624157,0.245122,81595.0,81592.0,0.392079]
[1743414624477,0.245122,81595.0,81592.0,0.14696]
[1743414624478,0.245117,81594.0,81592.0,0.14696]
[1743414624762,0.245119,81593.0,81592.0,0.14696]
[1743414624978,0.012257,81586.0,81580.0,0.012257]
[1743414625149,0.25739,81588.0,81585.0,0.245143]
[1743414625885,0.245137,81587.0,81586.0,0.14696]
[1743414626439,0.012257,81585.0,81576.0,0.245167]
[1743414626684,0.012257,81581.0,81579.0,0.14696]
[1743414626970,0.245161,81579.0,81578.0,0.63636]
[1743414627175,0.245161,81580.0,81578.0,0.78332]
[1743414628272,0.245149,81583.0,81578.0,0.78932]
[1743414628486,0.245152,81582.0,81578.0,0.78932]
[1743414628837,0.245158,81580.0,81578.0,0.78732]
[1743414629039,0.245158,81580.0,81578.0,0.79332]
[1743414629224,0.245156,81581.0,81578.0,0.79332]
[1743414629436,0.012257,81582.0,81578.0,1.038483]
[1743414629794,0.26970107,81585.0,81581.0,0.245154]
[1743414629795,0.01230007,81585.0,81581.0,0.245154]
[1743414629999,0.245146,81584.0,81580.0,0.012257]
[1743414630203,0.012257,81583.0,81578.0,1.034483]
[1743414630429,0.245159,81580.0,81578.0,0.78332]
[1743414630786,0.245159,81580.0,81578.0,0.78932]
[1743414630907,0.245159,81580.0,81578.0,0.15296]
[1743414631110,0.257411,81582.0,81578.0,0.14696]
[1743414631311,0.257411,81582.0,81579.0,0.01160739]
[1743414631515,0.245155,81581.0,81579.0,0.01160739]
[1743414632360,0.257408,81583.0,81579.0,0.01160739]
[1743414632558,0.245156,81581.0,81579.0,0.01160739]
[1743414632733,0.245158,81580.0,81579.0,0.01460739]
[1743414632937,0.257413,81581.0,81579.0,0.01460739]
[1743414633365,0.245158,81580.0,81579.0,0.01460739]
[1743414633889,0.257413,81581.0,81579.0,0.01960739]
[1743414634081,0.245152,81582.0,81579.0,0.01960739]
[1743414634282,0.245155,81581.0,81579.0,0.01460739]
[1743414634480,0.245155,81581.0,81579.0,0.01160739]
[1743414634683,0.257406,81583.0,81579.0,0.25976539]
[1743414635026,0.245152,81582.0,81579.0,0.26276539]
[1743414635201,0.245152,81582.0,81580.0,0.245157]
[1743414635444,0.01919235,81584.0,81583.0,0.257406]
[1743414635976,0.01919235,81584.0,81583.0,0.26911622]
[1743414637456,0.0122366,81585.0,81584.0,0.257403]
[1743414637675,0.3,81591.0,81584.0,0.257403]
[1743414637875,0.3,81591.0,81590.0,0.245128]
[1743414638211,0.31243243,81591.0,81590.0,0.245128]
[1743414638411,0.31243243,81591.0,81590.0,0.25683822]
[1743414638614,0.55755743,81591.0,81590.0,0.01171022]
[1743414638812,0.56981343,81591.0,81590.0,0.01171022]
[1743414639028,0.56981343,81591.0,81586.0,0.245139]
[1743414639029,0.3,81586.0,81580.0,0.012257]
[1743414639222,0.54514,81586.0,81583.0,0.257405]
[1743414639428,0.54514,81586.0,81583.0,0.002]
[1743414639629,0.54514,81586.0,81583.0,0.247147]
[1743414639829,0.3,81586.0,81583.0,0.247147]
[1743414640132,0.245142,81586.0,81583.0,0.247147]
[1743414640615,0.01919233,81586.0,81584.0,0.245145]
[1743414640992,0.01919233,81586.0,81585.0,0.2574]
[1743414642226,0.01919233,81586.0,81574.0,0.091958]
[1743414642395,0.01919233,81586.0,81571.0,0.245183]
[1743414642396,0.012258,81579.0,81572.0,0.012259]
[1743414642611,0.257406,81583.0,81578.0,0.14696]
[1743414642822,0.245155,81581.0,81578.0,0.14696]
[1743414643468,0.245158,81580.0,81578.0,0.14696]
[1743414644165,0.245161,81579.0,81578.0,0.14696]
[1743414644377,0.257419,81579.0,81578.0,0.14696]
[1743414644937,0.257419,81579.0,81578.0,0.15865311]
[1743414645151,0.245161,81579.0,81578.0,0.16265311]
[1743414645585,0.245161,81579.0,81578.0,0.01169311]
[1743414645786,0.245161,81579.0,81578.0,0.01369311]
[1743414646060,0.245161,81579.0,81578.0,0.01669311]
[1743414646640,0.245155,81581.0,81578.0,0.01669311]
[1743414646928,0.245161,81579.0,81578.0,0.01669311]
[1743414647480,0.257419,81579.0,81578.0,0.01669311]
[1743414647764,0.557419,81579.0,81578.0,0.01469311]
[1743414647932,0.557419,81579.0,81578.0,0.01269311]
[1743414648342,0.557419,81579.0,81578.0,0.01469311]
[1743414648747,0.557419,81579.0,81578.0,0.01269311]
[1743414649093,0.557419,81579.0,81578.0,0.01569311]
[1743414649312,0.557419,81579.0,81578.0,0.01769311]
[1743414650428,0.57661304,81579.0,81578.0,0.01769311]
[1743414651555,0.57661304,81579.0,81578.0,0.006]
[1743414653104,0.57661304,81579.0,81578.0,0.003]
[1743414653513,0.31919404,81579.0,81578.0,0.248164]
[1743414653715,0.31919404,81579.0,81578.0,0.27216069]
[1743414653917,0.31919404,81579.0,81578.0,0.26916069]
[1743414654356,0.31919404,81579.0,81578.0,0.27216069]
[1743414656518,0.01919404,81579.0,81578.0,0.27216069]
[1743414656696,0.01243243,81591.0,81590.0,0.257384]
[1743414656908,0.4134,81609.0,81607.0,0.25733]
[1743414657139,0.245061,81613.0,81608.0,0.26901797]
[1743414657312,0.257324,81609.0,81608.0,0.01169097]
[1743414657510,0.545074,81608.0,81601.0,0.245094]
[1743414657693,0.01220746,81609.0,81605.0,0.245083]
[1743414657893,0.012253,81610.0,81605.0,0.245083]
[1743414658102,0.245053,81615.0,81611.0,0.245064]
[1743414658324,0.00047126,81616.0,81612.0,0.012253]
[1743414658534,0.01302323,81616.0,81615.0,0.257304]
[1743414658782,0.01302323,81616.0,81615.0,0.404224]
[1743414659003,0.01302323,81616.0,81615.0,0.41588643]
[1743414659273,0.55807223,81616.0,81615.0,0.15858243]
[1743414660027,0.57725869,81616.0,81615.0,0.15858243]
[1743414660241,0.33220969,81616.0,81615.0,0.15858243]
[1743414660457,0.57725869,81616.0,81615.0,0.01166243]
[1743414660620,0.57725869,81616.0,81615.0,0.15858243]
[1743414660825,0.33220969,81616.0,81615.0,0.391972]
[1743414661198,0.57725869,81616.0,81615.0,0.15855175]
[1743414661398,0.58951069,81616.0,81615.0,0.15855175]
[1743414662027,0.58951069,81616.0,81615.0,0.01163175]
[1743414662461,0.245074,81608.0,81607.0,0.14688]
[1743414662854,0.245074,81608.0,81607.0,0.15851175]
[1743414663061,0.257327,81608.0,81607.0,0.15851175]
[1743414663433,0.245074,81608.0,81607.0,0.15851175]
[1743414663634,0.245073,81609.0,81607.0,0.15851175]
[1743414664193,0.245073,81609.0,81607.0,0.16151175]
[1743414664391,0.245073,81609.0,81607.0,0.16251175]
[1743414664621,0.245073,81609.0,81607.0,0.15951175]
[1743414664746,0.245073,81609.0,81607.0,0.15851175]
[1743414664955,0.245073,81609.0,81607.0,0.16151175]
[1743414665556,0.257326,81609.0,81607.0,0.16151175]
[1743414665940,0.245074,81608.0,81607.0,0.16151175]
[1743414666145,0.557327,81608.0,81607.0,0.01463175]
[1743414666387,0.557327,81608.0,81607.0,0.003]
[1743414666885,0.557327,81608.0,81607.0,0.001]
[1743414667273,0.557327,81608.0,81607.0,0.003]
[1743414667762,0.245102,81599.0,81596.0,0.245108]
[1743414668079,0.245102,81599.0,81597.0,0.25667596]
[1743414668282,0.245102,81599.0,81597.0,0.01156896]
[1743414668465,0.257351,81601.0,81597.0,0.25667496]
[1743414668466,0.012254,81601.0,81597.0,0.25667496]
[1743414668848,0.245104,81598.0,81597.0,0.01156896]
[1743414669362,0.245104,81598.0,81597.0,0.01157144]
[1743414670007,0.557359,81598.0,81597.0,0.01157144]
[1743414670214,0.257389,81589.0,81585.0,0.14684]
[1743414670436,0.245133,81590.0,81585.0,0.159097]
[1743414670611,0.245131,81589.0,81586.0,0.01158314]
[1743414670853,0.245134,81588.0,81586.0,0.01158314]
[1743414670980,0.245137,81587.0,81586.0,0.01158314]
[1743414671184,0.245134,81588.0,81586.0,0.01158314]
[1743414671390,0.245137,81587.0,81586.0,0.01158314]
[1743414671772,0.245137,81587.0,81586.0,0.002]
[1743414671978,0.245137,81587.0,81586.0,0.01358314]
[1743414671979,0.257393,81587.0,81586.0,0.01358314]
[1743414672237,0.257393,81587.0,81586.0,0.002]
[1743414672445,0.257393,81587.0,81586.0,0.003]
[1743414672801,0.257393,81587.0,81586.0,0.01461205]
[1743414673054,0.257393,81587.0,81586.0,0.003]
[1743414673199,0.257393,81587.0,81586.0,0.01261205]
[1743414673400,0.257393,81587.0,81586.0,0.001]
[1743414673606,0.557393,81587.0,81586.0,0.01361549]
[1743414673815,0.634693,81587.0,81586.0,0.002]
[1743414674017,0.634693,81587.0,81586.0,0.003]
[1743414675080,0.634693,81587.0,81586.0,0.001]
[1743414675311,0.245164,81578.0,81576.0,0.14684]
[1743414675701,0.245164,81578.0,81577.0,0.01161549]
[1743414676047,0.01919294,81578.0,81577.0,0.01161549]
[1743414676246,0.01919294,81578.0,81577.0,0.25678249]
[1743414676475,0.26435694,81578.0,81577.0,0.01161549]
[1743414677199,0.03121189,81578.0,81577.0,0.01161549]
[1743414677349,0.01201895,81578.0,81577.0,0.01461549]
[1743414677555,0.257421,81579.0,81577.0,0.01461549]
[1743414677757,0.257421,81580.0,81577.0,0.25978149]
[1743414677983,0.245161,81579.0,81577.0,0.01461549]
[1743414678329,0.245161,81579.0,81577.0,0.01261549]
[1743414678484,0.245164,81578.0,81577.0,0.01261549]
[1743414678679,0.257422,81578.0,81575.0,0.14684]
[1743414678884,0.257422,81578.0,81577.0,0.001]
[1743414679085,0.26965259,81578.0,81575.0,0.14684]
[1743414679555,0.245167,81577.0,81575.0,0.14684]
[1743414679759,0.24517,81576.0,81575.0,0.14684]
[1743414679960,0.257428,81576.0,81575.0,0.14684]
[1743414680279,0.245167,81577.0,81575.0,0.14684]
[1743414680732,0.257428,81576.0,81575.0,0.14984]
[1743414681083,0.257428,81576.0,81575.0,0.14684]
[1743414681280,0.245167,81577.0,81575.0,0.392013]
[1743414681484,0.245167,81577.0,81575.0,0.395013]
[1743414681686,0.26436111,81577.0,81575.0,0.397013]
[1743414682526,0.24517,81576.0,81575.0,0.005]
[1743414683173,0.257428,81576.0,81575.0,0.005]
[1743414683374,0.257428,81576.0,81575.0,0.002]
[1743414683588,0.257428,81576.0,81562.0,0.257471]
[1743414683589,0.257456,81567.0,81562.0,0.257471]
[1743414683787,0.245194,81568.0,81567.0,0.00014135]
[1743414684194,0.245188,81570.0,81567.0,0.00014135]
[1743414684345,0.245188,81570.0,81567.0,0.24533735]
[1743414684553,0.245192,81569.0,81567.0,0.00014135]
[1743414685451,0.245194,81568.0,81567.0,0.00014135]
[1743414686583,0.245192,81569.0,81567.0,0.00514135]
[1743414686789,0.01919508,81568.0,81567.0,0.00514135]
[1743414687113,0.26438908,81568.0,81567.0,0.00414135]
[1743414687467,0.245194,81568.0,81567.0,0.01014135]
[1743414688655,0.245185,81571.0,81567.0,0.25533735]
[1743414689138,0.245193,81569.0,81567.0,0.01014135]
[1743414689371,0.245194,81568.0,81567.0,0.01014135]
[1743414689608,0.557453,81568.0,81567.0,0.00414135]
[1743414689771,0.557453,81568.0,81567.0,0.01589819]
[1743414689772,0.69823878,81568.0,81567.0,0.01589819]
[1743414690000,0.69823878,81568.0,81567.0,0.00514135]
[1743414690274,0.69823878,81568.0,81567.0,0.00814135]
[1743414690482,0.71743714,81568.0,81567.0,0.00314135]
[1743414690685,0.71743714,81568.0,81567.0,0.00214135]
[1743414690912,0.71843714,81568.0,81567.0,0.00214135]
[1743414691309,0.71843714,81568.0,81567.0,0.00014135]
[1743414691430,0.71943714,81568.0,81567.0,0.00014135]
[1743414691632,0.58803714,81568.0,81567.0,0.00014135]
[1743414691831,0.32119836,81568.0,81567.0,0.01240035]
[1743414692044,0.57865136,81568.0,81567.0,0.00014135]
[1743414692245,0.57865136,81568.0,81567.0,0.01193815]
[1743414692449,0.57865136,81568.0,81567.0,0.00014135]
[1743414692690,0.57865136,81568.0,81567.0,0.01193433]
[1743414692894,0.57865136,81568.0,81567.0,0.00014135]
[1743414694579,0.57865136,81568.0,81567.0,0.01193341]
[1743414694842,0.57865136,81568.0,81567.0,0.00014135]
[1743414695546,0.32119836,81568.0,81567.0,0.01193341]
[1743414695970,0.56639236,81568.0,81567.0,0.01193341]
[1743414696123,0.57865136,81568.0,81567.0,0.01193341]
[1743414697412,0.559453,81568.0,81567.0,0.01193341]
[1743414697707,0.302,81568.0,81567.0,0.26938941]
[1743414697911,0.002,81568.0,81567.0,0.26938941]
[1743414699290,0.3,81574.0,81571.0,0.012259]
[1743414699463,0.545176,81574.0,81571.0,0.012259]
[1743414699624,0.545176,81574.0,81571.0,0.257441]
[1743414699826,0.545176,81574.0,81572.0,0.25697306]
[1743414700430,0.31919639,81574.0,81573.0,0.245179]
[1743414700771,0.02019639,81574.0,81573.0,0.01180287]
[1743414700969,0.26537239,81574.0,81570.0,0.245187]
[1743414701131,0.545182,81572.0,81571.0,0.01180287]
[1743414701336,0.3,81571.0,81569.0,0.24519]
[1743414701533,0.545185,81571.0,81570.0,0.01180287]
[1743414701901,0.545185,81571.0,81569.0,0.245188]
[1743414701902,0.3,81571.0,81569.0,0.245188]
[1743414702218,0.3,81571.0,81570.0,0.25699087]
[1743414702395,0.557444,81571.0,81570.0,0.01180287]
[1743414702622,0.245194,81568.0,81567.0,0.00014135]
[1743414703028,0.245194,81568.0,81567.0,0.01194422]
[1743414703178,0.257453,81568.0,81567.0,0.00014135]
[1743414703386,0.257453,81568.0,81567.0,0.01194422]
[1743414703552,0.557453,81568.0,81567.0,0.00014135]
[1743414704716,0.5801649,81568.0,81567.0,0.00014135]
[1743414705113,0.9935649,81568.0,81567.0,0.00014135]
[1743414705751,1.00491972,81568.0,81567.0,0.00014135]
[1743414705950,0.98220782,81568.0,81567.0,0.00114135]
[1743414706273,0.98220782,81568.0,81567.0,0.00014135]
[1743414707879,0.98320782,81568.0,81567.0,0.00014135]
[1743414709314,1.06220782,81568.0,81567.0,0.00014135]
[1743414710985,0.98320782,81568.0,81567.0,0.00014135]
[1743414711540,0.971853,81568.0,81567.0,0.00014135]
[1743414712136,0.991052,81568.0,81567.0,0.00014135]
[1743414717513,0.971853,81568.0,81567.0,0.00014135]
[1743414718494,0.312261,81557.0,81552.0,0.257502]
[1743414718639,0.245236,81555.0,81552.0,0.24524]
[1743414718839,0.257499,81554.0,81553.0,0.00987629]
[1743414719312,0.245239,81553.0,81551.0,0.245244]
[1743414719533,0.3,81559.0,81556.0,0.24523]
[1743414719767,0.545221,81559.0,81557.0,0.00988243]
[1743414719944,0.545225,81558.0,81557.0,0.00988243]
[1743414720146,0.3,81557.0,81555.0,0.245232]
[1743414720362,0.3,81557.0,81556.0,0.00988243]
[1743414720767,0.545227,81557.0,81556.0,0.00988243]
[1743414721076,0.3,81557.0,81555.0,0.245231]
[1743414721277,0.3,81557.0,81556.0,0.00988243]
[1743414721480,0.545227,81557.0,81556.0,0.00988243]
[1743414721627,0.557488,81557.0,81556.0,0.01088243]
[1743414721821,0.557488,81557.0,81556.0,0.001]
[1743414722068,0.012262,81552.0,81543.0,0.1296]
[1743414722277,0.245245,81551.0,81548.0,0.14676]
[1743414722534,0.245245,81551.0,81548.0,0.392011]
[1743414723210,0.245245,81551.0,81548.0,0.392012]
[1743414723398,0.245248,81550.0,81548.0,0.14676]
[1743414723603,0.012262,81552.0,81543.0,0.1336]
[1743414723604,0.012263,81546.0,81543.0,0.1296]
[1743414723804,0.245257,81547.0,81543.0,0.288623]
[1743414724037,0.245261,81546.0,81544.0,0.245266]
[1743414724251,0.245261,81546.0,81543.0,0.27636]
[1743414724450,0.245261,81546.0,81543.0,0.521628]
[1743414724685,0.245264,81545.0,81543.0,0.14676]
[1743414725092,0.01920069,81547.0,81543.0,0.159023]
[1743414725337,0.01920069,81547.0,81544.0,0.001]
[1743414726118,0.245261,81546.0,81544.0,0.001]
[1743414726300,0.245263,81545.0,81544.0,0.001]
[1743414726501,0.245266,81544.0,81543.0,0.14676]
[1743414726839,0.245266,81544.0,81543.0,0.14776]
[1743414727108,0.01224131,81544.0,81543.0,0.392029]
[1743414727465,0.245254,81548.0,81545.0,0.245261]
[1743414727763,0.245258,81547.0,81545.0,0.245261]
[1743414727949,0.25767781,81547.0,81544.0,0.245265]
[1743414728311,0.01241981,81547.0,81544.0,0.245265]
[1743414728536,0.245254,81548.0,81544.0,0.245265]
[1743414729087,0.245258,81547.0,81545.0,0.245262]
[1743414729254,0.01239765,81547.0,81545.0,0.245262]
[1743414729462,0.245257,81547.0,81544.0,0.247265]
[1743414729675,0.245257,81547.0,81544.0,0.245265]
[1743414729875,0.245257,81547.0,81545.0,0.001]
[1743414730098,0.245257,81547.0,81545.0,0.246263]
[1743414730302,0.245257,81547.0,81545.0,0.001]
[1743414730734,0.26445805,81547.0,81544.0,0.245265]
[1743414730952,0.26445805,81547.0,81544.0,0.248265]
[1743414731140,0.01920105,81547.0,81544.0,0.003]
[1743414731336,0.27654402,81547.0,81544.0,0.247266]
[1743414731677,0.27654402,81547.0,81545.0,0.246263]
[1743414731870,0.03128602,81547.0,81545.0,0.246263]
[1743414732072,0.03128602,81547.0,81546.0,0.24526]
[1743414732838,0.03128602,81547.0,81546.0,0.257523]
[1743414733449,0.03128602,81547.0,81546.0,0.259523]
[1743414733843,0.03128602,81547.0,81546.0,0.260523]
[1743414734382,0.03128602,81547.0,81546.0,0.342623]
[1743414734755,0.03128602,81547.0,81546.0,0.35254099]
[1743414737454,0.01208497,81547.0,81546.0,0.35254099]
[1743414737650,0.3,81555.0,81551.0,0.012262]
[1743414737866,0.31241365,81555.0,81554.0,0.257497]
[1743414738269,0.01241365,81555.0,81554.0,0.257497]
[1743414738462,0.3,81558.0,81557.0,0.245227]
[1743414738673,0.257424,81579.0,81570.0,0.012259]
[1743414738915,0.00014122,81573.0,81567.0,0.012259]
[1743414739239,0.00014122,81573.0,81572.0,0.245182]
[1743414739434,0.24532022,81573.0,81572.0,0.00991096]
[1743414739641,0.24532022,81573.0,81572.0,0.245182]
[1743414739642,0.00014122,81573.0,81572.0,0.245182]
[1743414739842,0.30014122,81573.0,81572.0,0.25492629]
[1743414740366,0.33292343,81573.0,81572.0,0.26718529]
[1743414740566,0.33192343,81573.0,81572.0,0.26718529]
[1743414740772,0.03192343,81573.0,81572.0,0.26718529]
[1743414740971,0.03292343,81573.0,81572.0,0.26718529]
[1743414742580,0.03292343,81573.0,81572.0,0.00974429]
[1743414742709,0.57810243,81573.0,81572.0,0.00974429]
[1743414743267,0.012259,81569.0,81564.0,0.01226]
[1743414743466,0.012259,81569.0,81563.0,0.245209]
[1743414743467,0.245198,81567.0,81563.0,0.245209]
[1743414743608,0.245191,81569.0,81563.0,0.01226]
[1743414743804,0.245191,81569.0,81564.0,0.245205]
[1743414744010,0.01135482,81566.0,81564.0,0.245205]
[1743414744253,0.01135482,81566.0,81564.0,0.257465]
[1743414744866,0.01135482,81566.0,81564.0,0.245205]
[1743414745202,0.01135482,81565.0,81564.0,0.245205]
[1743414745332,0.245206,81564.0,81563.0,0.001]
[1743414745533,0.01135482,81565.0,81563.0,0.001]
[1743414745723,0.245209,81563.0,81561.0,0.0762]
[1743414745926,0.245209,81563.0,81561.0,0.321414]
[1743414746132,0.01226,81564.0,81559.0,0.257482]
[1743414746352,0.257467,81564.0,81562.0,0.14668]
[1743414746554,0.245207,81564.0,81562.0,0.14668]
[1743414746754,0.245207,81564.0,81563.0,0.003]
[1743414747175,0.245206,81564.0,81563.0,0.0116035]
[1743414747408,0.245206,81564.0,81563.0,0.002]
[1743414747609,0.257466,81564.0,81563.0,0.002]
[1743414747748,0.257466,81564.0,81563.0,0.0116035]
[1743414747946,0.26881507,81564.0,81563.0,0.0116035]
[1743414748145,0.56881507,81564.0,81563.0,0.0106035]
[1743414748345,0.64651507,81564.0,81563.0,0.001]
[1743414749202,0.635166,81564.0,81563.0,0.001]
[1743414749344,0.635166,81564.0,81563.0,0.003]
[1743414749812,0.257504,81552.0,81551.0,0.14668]
[1743414750013,0.557504,81552.0,81551.0,0.15632085]
[1743414750465,0.57670437,81552.0,81551.0,0.15632085]
[1743414751502,0.57670437,81552.0,81551.0,0.15732085]
[1743414752023,0.57670437,81552.0,81551.0,0.16032085]
[1743414752828,0.57670437,81552.0,81551.0,0.01364085]
[1743414753029,0.57670437,81552.0,81551.0,0.004]
[1743414754284,0.58804946,81552.0,81551.0,0.003]
[1743414754639,0.67014946,81552.0,81551.0,0.003]
[1743414754835,0.257526,81545.0,81544.0,0.14668]
[1743414755738,0.26887109,81545.0,81544.0,0.14668]
[1743414756588,0.26887109,81545.0,81534.0,0.245295]
[1743414756589,0.245287,81537.0,81534.0,0.245295]
[1743414756932,0.245284,81540.0,81536.0,0.245288]
[1743414757148,0.245284,81540.0,81537.0,0.12260386]
[1743414757344,0.26447801,81541.0,81537.0,0.37766418]
[1743414757590,0.245279,81540.0,81537.0,0.37766418]
[1743414758132,0.245282,81539.0,81537.0,0.13237918]
[1743414758556,0.245284,81538.0,81537.0,0.13237918]
[1743414758900,0.245282,81539.0,81537.0,0.13237918]
[1743414759105,0.245282,81539.0,81537.0,0.13537918]
[1743414759436,0.245282,81539.0,81537.0,0.13237918]
[1743414759641,0.245282,81539.0,81537.0,0.13737918]
[1743414759851,0.245282,81539.0,81537.0,0.13537918]
[1743414760047,0.245284,81538.0,81537.0,0.13637918]
[1743414760249,0.257548,81538.0,81537.0,0.13637918]
[1743414760677,0.257548,81538.0,81537.0,0.01377532]
[1743414760950,0.257548,81538.0,81537.0,0.01277532]
[1743414761179,0.24529,81536.0,81535.0,0.14668]
[1743414761396,0.245293,81535.0,81534.0,0.00014103]
[1743414761589,0.245293,81535.0,81534.0,0.14678103]
[1743414762126,0.24529,81536.0,81534.0,0.14678103]
[1743414762330,0.01256938,81538.0,81535.0,0.003]
[1743414762556,0.01920196,81539.0,81535.0,0.003]
[1743414762766,0.245292,81536.0,81535.0,0.003]
[1743414762960,0.245293,81535.0,81534.0,0.14678103]
[1743414764188,0.245293,81535.0,81534.0,0.14878103]
[1743414764590,0.245293,81535.0,81534.0,0.1585502]
[1743414764820,0.24529,81536.0,81534.0,0.1585502]
[1743414765025,0.24529,81536.0,81534.0,0.4068452]
[1743414765234,0.245293,81535.0,81534.0,0.1615502]
[1743414765706,0.24529,81536.0,81534.0,0.1615502]
[1743414765909,0.245293,81535.0,81534.0,0.1565502]
[1743414766112,0.245293,81535.0,81534.0,0.1595502]
[1743414766497,0.245293,81535.0,81534.0,0.1615502]
[1743414766691,0.245293,81535.0,81534.0,0.1595502]
[1743414767107,0.245293,81535.0,81534.0,0.1615502]
[1743414768004,0.245293,81535.0,81534.0,0.1585502]
[1743414768213,0.245293,81535.0,81534.0,0.1615502]
[1743414768442,0.02449726,81538.0,81535.0,0.012264]
[1743414768443,0.01223326,81538.0,81535.0,0.012264]
[1743414768621,0.01223326,81538.0,81537.0,0.257551]
[1743414768810,0.245272,81542.0,81538.0,0.245281]
[1743414769407,0.245272,81542.0,81539.0,0.00980875]
[1743414769773,0.245278,81540.0,81539.0,0.00980875]
[1743414769977,0.257538,81541.0,81537.0,0.36788986]
[1743414770180,0.01213738,81542.0,81541.0,0.257538]
[1743414770413,0.3,81552.0,81545.0,0.24526]
[1743414770625,0.3,81550.0,81547.0,0.257513]
[1743414770825,0.3,81550.0,81548.0,0.00980168]
[1743414771051,0.3192009,81550.0,81549.0,0.245251]
[1743414771424,0.3192009,81550.0,81549.0,0.25505268]
[1743414772024,0.0192009,81550.0,81549.0,0.25505268]
[1743414773065,0.0192009,81550.0,81549.0,0.26731468]
[1743414773269,0.0192009,81550.0,81549.0,0.00980168]
[1743414773592,0.0192009,81550.0,81549.0,0.25505268]
[1743414773965,0.0192009,81550.0,81549.0,0.00980168]
[1743414774173,0.2644489,81550.0,81549.0,0.00980168]
[1743414774367,0.3,81547.0,81546.0,0.245257]
[1743414775369,0.3192009,81550.0,81548.0,0.245253]
[1743414776141,0.3192009,81550.0,81549.0,0.245251]
[1743414776462,0.0192009,81550.0,81549.0,0.245251]
[1743414777091,0.0192009,81550.0,81548.0,0.245253]
[1743414777295,0.2644489,81550.0,81548.0,0.245253]
[1743414777492,0.3,81548.0,81546.0,0.257523]
[1743414777698,0.545255,81548.0,81545.0,0.245263]
[1743414777874,0.3,81548.0,81546.0,0.24526]
[1743414778075,0.545254,81548.0,81545.0,0.245262]
[1743414778275,0.245261,81546.0,81543.0,0.245266]
[1743414778735,0.245263,81545.0,81541.0,0.36787686]
[1743414779036,0.245267,81544.0,81542.0,0.12260386]
[1743414779393,0.245263,81545.0,81542.0,0.36787486]
[1743414779593,0.245269,81543.0,81542.0,0.12260386]
[1743414779842,0.245263,81545.0,81513.0,0.4086]
[1743414779843,0.245293,81535.0,81527.0,0.293016]
[1743414780042,0.245291,81536.0,81534.0,0.26938489]
[1743414780228,0.24529,81536.0,81535.0,0.12260386]
[1743414780687,0.26449248,81536.0,81535.0,0.12260386]
[1743414781544,0.257557,81535.0,81534.0,0.00314103]
[1743414781897,0.257557,81535.0,81534.0,0.14674103]
[1743414782300,0.245293,81535.0,81534.0,0.14674103]
[1743414783483,0.245293,81535.0,81534.0,0.14874103]
[1743414783930,0.245293,81535.0,81534.0,0.15174103]
[1743414784080,0.245293,81535.0,81534.0,0.16843347]
[1743414784260,0.245293,81535.0,81534.0,0.15174103]
[1743414784462,0.257557,81535.0,81534.0,0.15174103]
[1743414784696,0.257557,81535.0,81534.0,0.00514103]
[1743414786317,0.557557,81535.0,81534.0,0.00514103]
[1743414786747,0.557557,81535.0,81534.0,0.00484103]
[1743414790449,0.557557,81535.0,81534.0,0.00184103]
[1743414790650,0.257567,81532.0,81531.0,0.004]
[1743414790900,0.25770814,81532.0,81531.0,0.004]
[1743414792874,0.24544314,81532.0,81531.0,0.004]
[1743414793138,0.00014114,81532.0,81531.0,0.004]
[1743414793357,0.00014114,81532.0,81531.0,0.249305]
[1743414793503,0.00014114,81532.0,81531.0,0.39406541]
[1743414796181,0.00014114,81532.0,81531.0,0.39606541]
[1743414796410,0.00014114,81532.0,81531.0,0.39706541]
[1743414799389,0.00014114,81532.0,81531.0,0.53136041]
[1743414799590,0.00014114,81532.0,81531.0,0.54362541]
[1743414802674,0.00014114,81532.0,81531.0,0.53136041]
[1743414802890,0.24544314,81532.0,81531.0,0.28605541]
[1743414803228,0.25770814,81532.0,81531.0,0.01689155]
[1743414803365,0.25770814,81532.0,81531.0,0.16345155]
[1743414803561,0.25770814,81532.0,81531.0,0.15356]
[1743414805318,0.25770814,81532.0,81531.0,0.15156]
[1743414805473,0.25770814,81532.0,81531.0,0.15056]
[1743414805675,0.25770814,81532.0,81531.0,0.15156]
[1743414806518,0.25770814,81532.0,81531.0,0.005]
[1743414806817,0.55770814,81532.0,81531.0,0.005]
[1743414808622,0.55770814,81532.0,81531.0,0.004]
[1743414809272,0.30014114,81532.0,81531.0,0.12660386]
[1743414809471,0.55770814,81532.0,81531.0,0.004]
[1743414810059,0.54544314,81532.0,81531.0,0.004]